Workbook

Sheet Квалификация
B3: турнир 5 этап . Развлекательный центр 5 элемент
A5: № | B5: Ф.И.О. | C5: 1 | D5: 2 | E5: 3 | F5: итого | G5: сред. | H5: макс. | I5: разн. | J5: турба гейм | K5: место | L5: турба
A6: 13 | B6: Кияшкин Александр | C6: 214 | D6: 209 | E6: 188 | F6: =SUM(C6:E6) -> 611 | G6: =AVERAGE(C6:E6) -> 203.6666667 | H6: =MAX(C6:E6) -> 214 | I6: =IF(D6<>"",MAX(C6:E6)-MIN(C6:E6),"") -> 26 | K6: 1
A7: 11 | B7: Таганов Алексей | C7: 184 | D7: 189 | E7: 200 | F7: 573 | G7: 191 | H7: 200 | I7: 16 | J7: да | K7: 2
A8: 15 | B8: Хохлов Сергей | C8: 216 | D8: 149 | E8: 167 | F8: 532 | G8: 177.3333333 | H8: 216 | I8: 67 | K8: 3
A9: 4 | B9: Вразовский Иван | C9: 186 | D9: 162 | E9: 183 | F9: 531 | G9: 177 | H9: 186 | I9: 24 | K9: 4
A10: 3 | B10: Чамаев Сергей | C10: 172 | D10: 181 | E10: 172 | F10: 525 | G10: 175 | H10: 181 | I10: 9 | K10: 5
A11: 16 | B11: Снегирёв Дмитрий | C11: 188 | D11: 157 | E11: 177 | F11: 522 | G11: 174 | H11: 188 | I11: 31 | K11: 6
A12: 5 | B12: Харитонова Наталья | C12: 174 | D12: 159 | E12: 188 | F12: 521 | G12: 173.6666667 | H12: 188 | I12: 29 | K12: 7
A13: 7 | B13: Смирнов Павел | C13: 166 | D13: 153 | E13: 151 | F13: 470 | G13: 156.6666667 | H13: 166 | I13: 15 | K13: 8
A14: 14 | B14: Лопатков Антон | C14: 119 | D14: 179 | E14: 162 | F14: 460 | G14: 153.3333333 | H14: 179 | I14: 60 | K14: 9
A15: 8 | B15: Карташов Александр | C15: 133 | D15: 184 | E15: 131 | F15: 448 | G15: 149.3333333 | H15: 184 | I15: 53 | J15: да | K15: 10
A16: 6 | B16: Локтюшин Вячеслав | C16: 157 | D16: 149 | E16: 136 | F16: 442 | G16: 147.3333333 | H16: 157 | I16: 21 | J16: да | K16: 11
A17: 2 | B17: Мясников Владимир | C17: 138 | D17: 129 | E17: 169 | F17: 436 | G17: 145.3333333 | H17: 169 | I17: 40 | K17: 12
A18: 12 | B18: Ананьев Владимир | C18: 130 | D18: 145 | E18: 154 | F18: 429 | G18: 143 | H18: 154 | I18: 24 | K18: 13
A19: 9 | B19: Любимов Олег | C19: 123 | D19: 148 | E19: 147 | F19: 418 | G19: 139.3333333 | H19: 148 | I19: 25 | J19: да | K19: 14
A20: 1 | B20: Ситников Олег | C20: 135 | D20: 154 | E20: 109 | F20: 398 | G20: 132.6666667 | H20: 154 | I20: 45 | K20: 15
A21: 10 | B21: Таганова Александра | C21: 132 | D21: 101 | E21: 126 | F21: 359 | G21: 119.6666667 | H21: 132 | I21: 31 | J21: да | K21: 16
F22: 0 | H22: 0
F23: 0 | H23: 0

Sheet Раунды
A9: № | B9: Ф.И.О. | C9: 1 | D9: 2 | E9: итого | F9: сред. | G9: макс. | H9: разн. | I9: место
A10: D | B10: Харитонова Наталья | C10: 175 | D10: 200 | E10: =SUM(B10:D10) -> 375 | F10: =AVERAGE(B10:D10) -> 187.5 | G10: =MAX(B10:D10) -> 200 | H10: =IF(C10<>"",MAX(B10:D10)-MIN(B10:D10),"") -> 25 | I10: 1
A11: 13 | B11: Кияшкин Александр | C11: 170 | D11: 176 | E11: =SUM(B11:D11) -> 346 | F11: =AVERAGE(B11:D11) -> 173 | G11: =MAX(B11:D11) -> 176 | H11: =IF(C11<>"",MAX(B11:D11)-MIN(B11:D11),"") -> 6 | I11: 2
A12: 11 | B12: Таганов Алексей | C12: 178 | D12: 154 | E12: =SUM(B12:D12) -> 332 | F12: =AVERAGE(B12:D12) -> 166 | G12: =MAX(B12:D12) -> 178 | H12: =IF(C12<>"",MAX(B12:D12)-MIN(B12:D12),"") -> 24 | I12: 3
A13: 4 | B13: Вразовский Иван | C13: 138 | D13: 132 | E13: =SUM(B13:D13) -> 270 | F13: =AVERAGE(B13:D13) -> 135 | G13: =MAX(B13:D13) -> 138 | H13: =IF(C13<>"",MAX(B13:D13)-MIN(B13:D13),"") -> 6 | I13: 4
A18: № | B18: Ф.И.О. | C18: 1 | D18: 2 | E18: итого | F18: сред. | G18: макс. | H18: разн. | I18: место
A19: 4 | B19: Вразовский Иван | C19: 175 | D19: 158 | E19: =SUM(B19:D19) -> 333 | F19: =AVERAGE(B19:D19) -> 166.5 | G19: =MAX(B19:D19) -> 175 | H19: =IF(C19<>"",MAX(B19:D19)-MIN(B19:D19),"") -> 17 | I19: 1
A20: D | B20: Харитонова Наталья | C20: 136 | D20: 174 | E20: =SUM(B20:D20) -> 310 | F20: =AVERAGE(B20:D20) -> 155 | G20: =MAX(B20:D20) -> 174 | H20: =IF(C20<>"",MAX(B20:D20)-MIN(B20:D20),"") -> 38 | I20: 2
A21: 16 | B21: Снегирёв Дмитрий | C21: 148 | D21: 146 | E21: =SUM(B21:D21) -> 294 | F21: =AVERAGE(B21:D21) -> 147 | G21: =MAX(B21:D21) -> 148 | H21: =IF(C21<>"",MAX(B21:D21)-MIN(B21:D21),"") -> 2 | I21: 3
A22: 15 | B22: Хохлов Сергей | C22: 159 | D22: 105 | E22: =SUM(B22:D22) -> 264 | F22: =AVERAGE(B22:D22) -> 132 | G22: =MAX(B22:D22) -> 159 | H22: =IF(C22<>"",MAX(B22:D22)-MIN(B22:D22),"") -> 54 | I22: 4
A25: № | B25: Ф.И.О. | C25: 1 | D25: 2 | E25: итого | F25: сред. | G25: макс. | H25: разн. | I25: место
A26: 16 | B26: Снегирёв Дмитрий | C26: 152 | D26: 188 | E26: =SUM(B26:D26) -> 340 | F26: =AVERAGE(B26:D26) -> 170 | G26: =MAX(B26:D26) -> 188 | H26: =IF(C26<>"",MAX(B26:D26)-MIN(B26:D26),"") -> 36 | I26: 1
A27: D | B27: Харитонова Наталья | C27: 172 | D27: 154 | E27: =SUM(B27:D27) -> 326 | F27: =AVERAGE(B27:D27) -> 163 | G27: =MAX(B27:D27) -> 172 | H27: =IF(C27<>"",MAX(B27:D27)-MIN(B27:D27),"") -> 18 | I27: 2
A28: T | B28: Карташов Александр | C28: 129 | D28: 154 | E28: =SUM(B28:D28) -> 283 | F28: =AVERAGE(B28:D28) -> 141.5 | G28: =MAX(B28:D28) -> 154 | H28: =IF(C28<>"",MAX(B28:D28)-MIN(B28:D28),"") -> 25 | I28: 3
A29: 3 | B29: Чамаев Сергей | C29: 145 | D29: 131 | E29: =SUM(B29:D29) -> 276 | F29: =AVERAGE(B29:D29) -> 138 | G29: =MAX(B29:D29) -> 145 | H29: =IF(C29<>"",MAX(B29:D29)-MIN(B29:D29),"") -> 14 | I29: 4
